fUSD/lending_fUSD_20250504
["ID","MTS","AMOUNT","RATE_DAILY","PERIOD"]
[359778684,1746333040162,-450.0,0.00019983,2]
[359778685,1746333040175,-450.0,0.00019983,2]
[359778686,1746333040185,-450.0,0.00019983,2]
[359778687,1746333040196,-450.0,0.00019983,2]
[359778688,1746333040207,-450.0,0.00019983,2]
[359778689,1746333040218,-932.79,0.00019983,2]
[359778690,1746333040227,-450.0,0.00019983,2]
[359778691,1746333040236,-450.0,0.00019983,2]
[359778692,1746333040246,-450.0,0.00019983,2]
[359778693,1746333040255,-450.0,0.00019983,2]
[359778694,1746333040265,-4090.32,0.00019983,2]
[359778695,1746333040274,-419.16904991,0.00019983,2]
[359778696,1746333040298,-30.83095009,0.00019983,2]
[359778697,1746333040308,-450.0,0.00019983,2]
[359778698,1746333040319,-649.37,0.00019983,2]
[359778699,1746333040329,-450.0,0.00019983,2]
[359778700,1746333040339,-52.78670455,0.00019983,2]
[359778701,1746333040358,-958.43608478,0.00019983,2]
[359778702,1746333040460,-1969.04721067,0.00019983,2]
[359778703,1746333040471,-27.63763746,0.00019983,2]
[359778704,1746333040490,-422.36236254,0.00019983,2]
[359778705,1746333040499,-450.0,0.00019983,2]
[359778706,1746333040509,-450.0,0.00019983,2]
[359778707,1746333040518,-450.0,0.00019983,2]
[359778708,1746333040527,-817.79,0.00019983,2]
[359778709,1746333040536,-450.0,0.00019983,2]
[359778710,1746333040545,-450.0,0.00019983,2]
[359778711,1746333040556,-2790.79,0.00019983,2]
[359778712,1746333040566,-450.0,0.00019983,2]
[359778713,1746333040575,-838.25,0.00019983,2]
[359778714,1746333040585,-450.0,0.00019983,2]
[359778715,1746333040594,-64917.0,0.00019983,2]
[359778716,1746333040603,-450.0,0.00019983,2]
[359778717,1746333040612,-450.0,0.00019983,2]
[359778718,1746333040622,-450.0,0.00019983,2]
[359778719,1746333040631,-450.0,0.00019983,2]
[359778720,1746333040640,-1077.89,0.00019983,2]
[359778721,1746333040649,-450.0,0.00019983,2]
[359778722,1746333040660,-450.0,0.00019983,2]
[359778723,1746333040669,-2038.0,0.00019983,2]
[359778724,1746333040679,-1211.01,0.00019983,2]
[359778725,1746333040689,-747.47,0.00019983,2]
[359778726,1746333040700,-450.0,0.00019983,2]
[359778727,1746333040710,-450.0,0.00019983,2]
[359778728,1746333040721,-450.0,0.00019983,2]
[359778729,1746333040730,-15054.17,0.00019983,2]
[359778730,1746333040740,-1990.96,0.00019983,2]
[359778731,1746333040750,-450.0,0.00019983,2]
[359778732,1746333040759,-450.0,0.00019983,2]
[359778733,1746333040769,-450.0,0.00019983,2]
[359778734,1746333040779,-1019.32,0.00019983,2]
[359778735,1746333040790,-1066.4,0.00019983,2]
[359778736,1746333040799,-450.0,0.00019983,2]
[359778737,1746333040810,-222.61775489,0.00019983,2]
[359778738,1746333040819,-450.0,0.00019983,2]
[359778739,1746333040830,-577.1,0.00019983,2]
[359778740,1746333040839,-8743.44,0.00019983,2]
[359778741,1746333040848,-450.0,0.00019983,2]
[359778742,1746333040857,-450.0,0.00019983,2]
[359778743,1746333040867,-450.0,0.00019983,2]
[359778744,1746333040877,-502.12714898,0.00019983,2]
[359778745,1746333040886,-450.0,0.00019983,2]
[359778746,1746333040897,-450.0,0.00019983,2]
[359778747,1746333040907,-450.0,0.00019983,2]
[359778748,1746333040918,-450.0,0.00019983,2]
[359778749,1746333040927,-450.0,0.00019983,2]
[359778750,1746333040937,-707.92,0.00019983,2]
[359778751,1746333040947,-450.0,0.00019983,2]
[359778752,1746333040956,-450.0,0.00019983,2]
[359778753,1746333040965,-450.0,0.00019983,2]
[359778754,1746333040975,-450.0,0.00019983,2]
[359778755,1746333040984,-450.0,0.00019983,2]
[359778756,1746333040993,-450.0,0.00019983,2]
[359778757,1746333041003,-450.0,0.00019983,2]
[359778758,1746333041012,-3720.55,0.00019983,2]
[359778759,1746333041022,-450.0,0.00019983,2]
[359778760,1746333041031,-995.79,0.00019983,2]
[359778761,1746333041041,-450.0,0.00019983,2]
[359778762,1746333041051,-450.0,0.00019983,2]
[359778763,1746333041060,-450.0,0.00019983,2]
[359778764,1746333041070,-363.53218527,0.00019983,2]
[359778765,1746333041079,-565.41,0.00019983,2]
[359778766,1746333041090,-454.0,0.00019983,2]
[359778767,1746333041099,-610.07,0.00019983,2]
[359778768,1746333041109,-1642.15,0.00019983,2]
[359778769,1746333041118,-450.0,0.00019983,2]
[359778770,1746333041127,-450.0,0.00019983,2]
[359778771,1746333041137,-450.0,0.00019983,2]
[359778772,1746333041146,-2856.26,0.00019983,2]
[359778773,1746333041155,-450.0,0.00019983,2]
[359778774,1746333041168,-450.0,0.00019983,2]
[359778775,1746333041178,-512.72,0.00019983,2]
[359778776,1746333041187,-450.0,0.00019983,2]
[359778777,1746333041196,-450.0,0.00019983,2]
[359778778,1746333041205,-475.11,0.00019983,2]
[359778779,1746333041214,-1293.79,0.00019983,2]
[359778780,1746333041223,-532.28,0.00019983,2]
[359778781,1746333041232,-450.0,0.00019983,2]
[359778782,1746333041241,-966.6,0.00019983,2]
[359778783,1746333041251,-450.0,0.00019983,2]
[359778784,1746333041261,-450.0,0.00019983,2]
[359778785,1746333041273,-450.0,0.00019983,2]
[359778786,1746333041284,-615.25,0.00019983,2]
[359778787,1746333041296,-491.2152973,0.00019983,2]
[359778788,1746333041305,-679.0,0.00019983,2]
[359778789,1746333041315,-1262.78,0.00019983,2]
[359778790,1746333041324,-674.6,0.00019983,2]
[359778791,1746333041333,-777.21,0.00019983,2]
[359778792,1746333041344,-450.0,0.00019983,2]
[359778793,1746333041353,-450.0,0.00019983,2]
[359778794,1746333041362,-450.0,0.00019983,2]
[359778795,1746333041372,-400.0,0.00019983,2]
[359778796,1746333041382,-1702.23,0.00019983,2]
[359778797,1746333041391,-450.0,0.00019983,2]
[359778798,1746333041400,-450.0,0.00019984,2]
[359778799,1746333041411,-470.94984549,0.00019984,2]
[359778800,1746333041420,-171.58065069,0.00019984,2]
[359778801,1746333041430,-308.64224587,0.00019984,2]
[359778802,1746333041439,-164.30832854,0.00019984,2]
[359778803,1746333041450,-265.42984691,0.00019984,2]
[359778804,1746333041459,-482.89352904,0.00019984,2]
[359778805,1746333041468,-450.0,0.00019984,2]
[359778806,1746333041478,-483.81811907,0.00019984,2]
[359778807,1746333041489,-467.71550843,0.00019984,2]
[359778808,1746333041499,-407.89123308,0.00019984,2]
[359778809,1746333041508,-409.6571982,0.00019984,2]
[359778810,1746333041519,-450.0,0.00019984,2]
[359778811,1746333041528,-436.10331278,0.00019984,2]
[359778812,1746333041537,-309.5229461,0.00019984,2]
[359778813,1746333041547,-434.63122504,0.00019984,2]
[359778814,1746333041556,-471.11987619,0.00019984,2]
[359778815,1746333041565,-450.0,0.00019984,2]
[359778816,1746333041574,-470.39349559,0.00019984,2]
[359778817,1746333041585,-458.94729531,0.00019984,2]
[359778818,1746333041595,-482.19603968,0.00019984,2]
[359778819,1746333041604,-450.0,0.00019984,2]
[359778820,1746333041614,-2778.366,0.00019984,2]
[359778821,1746333041624,-168.098,0.00019984,2]
[359778822,1746333041632,-463.16832675,0.00019984,2]
[359778823,1746333041643,-465.74491439,0.00019984,2]
[359778824,1746333041655,-462.75974358,0.00019984,2]
[359778825,1746333041665,-459.26929199,0.00019984,2]
[359778826,1746333041674,-443.47790046,0.00019984,2]
[359778827,1746333041683,-466.26499934,0.00019984,2]
[359778828,1746333041693,-450.0,0.00019984,2]
[359778829,1746333041702,-450.0,0.00019984,2]
[359778830,1746333041711,-278.27483818,0.00019984,2]
[359778831,1746333041720,-450.0,0.00019984,2]
[359778832,1746333041731,-284.93828116,0.00019984,2]
[359778833,1746333041741,-297.94961747,0.00019984,2]
[359778834,1746333041750,-175.71064019,0.00019984,2]
[359778835,1746333041760,-1606.81,0.00019984,2]
[359778836,1746333041769,-211.0107714,0.00019984,2]
[359778837,1746333041778,-450.0,0.00019984,2]
[359778838,1746333041786,-193.33186771,0.00019984,2]
[359778839,1746333041796,-450.0,0.00019984,2]
[359778840,1746333041805,-394.50797937,0.00019984,2]
[359778841,1746333041814,-450.0,0.00019984,2]
[359778842,1746333041823,-450.0,0.00019984,2]
[359778843,1746333041833,-290.19850089,0.00019984,2]
[359778844,1746333041843,-450.0,0.00019984,2]
[359778845,1746333041852,-539.82013308,0.00019984,2]
[359778846,1746333041861,-450.0,0.00019984,2]
[359778847,1746333041870,-450.0,0.00019984,2]
[359778848,1746333041880,-450.0,0.00019984,2]
[359778849,1746333041889,-450.0,0.00019984,2]
[359778850,1746333041899,-450.0,0.00019984,2]
[359778851,1746333041909,-638.58,0.00019984,2]
[359778852,1746333041918,-572.89,0.00019984,2]
[359778853,1746333041927,-450.0,0.00019984,2]
[359778854,1746333041937,-418.9886047,0.00019984,2]
[359778855,1746333041947,-347.72316847,0.00019984,2]
[359778856,1746333041956,-446.11298159,0.00019984,2]
[359778857,1746333041966,-367.77794006,0.00019984,2]
[359778858,1746333041976,-450.0,0.00019984,2]
[359778859,1746333041985,-450.0,0.00019984,2]
[359778860,1746333041994,-199.47601879,0.00019984,2]
[359778861,1746333042003,-450.0,0.00019984,2]
[359778862,1746333042012,-450.0,0.00019984,2]
[359778863,1746333042021,-228.81374215,0.00019984,2]
[359778864,1746333042031,-450.0,0.00019984,2]
[359778865,1746333042040,-477.37496971,0.00019984,2]
[359778866,1746333042049,-459.99666134,0.00019984,2]
[359778867,1746333042058,-450.0,0.00019984,2]
[359778868,1746333042067,-469.47184497,0.00019984,2]
[359778869,1746333042078,-957.41,0.00019984,2]
[359778870,1746333042087,-450.0,0.00019984,2]
[359778871,1746333042096,-460.5951553,0.00019984,2]
[359778872,1746333042107,-1000.0,0.00019984,2]
[359778873,1746333042118,-459.24642127,0.00019984,2]
[359778874,1746333042128,-463.46115272,0.00019984,2]
[359778875,1746333042137,-465.88794519,0.00019984,2]
[359778876,1746333042146,-450.0,0.00019984,2]
[359778877,1746333042156,-550.87,0.00019984,2]
[359778878,1746333042167,-369.5154333,0.00019984,2]
[359778879,1746333042177,-450.0,0.00019984,2]
[359778880,1746333042186,-450.0,0.00019984,2]
[359778881,1746333042198,-450.0,0.00019984,2]
[359778882,1746333042209,-450.0,0.00019984,2]
[359778883,1746333042219,-450.0,0.00019984,2]
[359778884,1746333042228,-762.1,0.00019984,2]
[359778885,1746333042238,-312.81462828,0.00019984,2]
[359778886,1746333042247,-450.0,0.00019984,2]
[359778887,1746333042257,-446.91832102,0.00019984,2]
[359778888,1746333042266,-353.60549824,0.00019984,2]
[359778889,1746333042275,-388.3773319,0.00019984,2]
[359778890,1746333042284,-450.0,0.00019984,2]
[359778891,1746333042295,-621.73,0.00019984,2]
[359778892,1746333042304,-450.0,0.00019984,2]
[359778893,1746333042313,-450.0,0.00019984,2]
[359778894,1746333042323,-450.0,0.00019984,2]
[359778895,1746333042331,-216.02743904,0.00019984,2]
[359778896,1746333042340,-450.0,0.00019984,2]
[359778897,1746333042350,-318.97367761,0.00019984,2]
[359778898,1746333042359,-438.26023689,0.00019984,2]
[359778899,1746333042368,-1652.19,0.00019984,2]
[359778900,1746333042378,-450.0,0.00019984,2]
[359778901,1746333042389,-450.0,0.00019984,2]
[359778902,1746333042399,-450.0,0.00019984,2]
[359778903,1746333042410,-991.19,0.00019984,2]
[359778904,1746333042420,-863.19,0.00019984,2]
[359778905,1746333042430,-450.0,0.00019984,2]
[359778906,1746333042439,-450.0,0.00019984,2]
[359778907,1746333042448,-450.0,0.00019984,2]
[359778908,1746333042457,-450.0,0.00019984,2]
[359778909,1746333042468,-450.0,0.00019984,2]
[359778910,1746333042478,-477.88,0.00019985,2]
[359778911,1746333042488,-450.0,0.00019985,2]
[359778912,1746333042499,-623.58,0.00019985,2]
[359778913,1746333042508,-844.57,0.00019985,2]
[359778914,1746333042517,-450.0,0.00019985,2]
[359778915,1746333042527,-450.0,0.00019985,2]
[359778916,1746333042536,-450.0,0.00019985,2]
[359778917,1746333042545,-450.0,0.00019985,2]
[359778918,1746333042554,-450.0,0.00019985,2]
[359778919,1746333042563,-1003.93,0.00019985,2]
[359778920,1746333042573,-450.0,0.00019985,2]
[359778921,1746333042583,-450.0,0.00019985,2]
[359778922,1746333042592,-450.0,0.00019985,2]
[359778923,1746333042601,-580.76,0.00019985,2]
[359778924,1746333042610,-450.0,0.00019985,2]
[359778925,1746333042619,-450.0,0.00019985,2]
[359778926,1746333042628,-450.0,0.00019985,2]
[359778927,1746333042637,-1790.29,0.00019985,2]
[359778928,1746333042646,-450.0,0.00019985,2]
[359778929,1746333042655,-786.53,0.00019985,2]
[359778930,1746333042664,-450.0,0.00019985,2]
[359778931,1746333042673,-1617.82,0.00019985,2]
[359778932,1746333042682,-450.0,0.00019985,2]
[359778933,1746333042691,-450.0,0.00019985,2]
[359778934,1746333042701,-13945.4659691,0.00019986,2]
[359778936,1746333042710,-103913.93501714,0.00019986,2]
[359778938,1746333042724,-12500.0,0.00019986,2]
[359778939,1746333042735,-82769.31372096,0.00019986,2]
[359778941,1746333042744,-5764.0131498,0.00019986,2]
[359778943,1746333042753,-267.64899805,0.00019993,2]
[359778945,1746333042763,-159.0,0.00019993,2]
[359778947,1746333042772,-666.0,0.00019999,2]
[359778948,1746333042782,-311.93520587,0.00019999,2]
[359778949,1746333042792,-283.08598319,0.00019999,2]
[359778950,1746333042801,-500.0,0.00019999,2]
[359778951,1746333042810,-500.0,0.00019999,2]
[359778952,1746333042819,-500.0,0.00019999,2]
[359778956,1746333042828,-1437.03160229,0.00019999,2]
[359778957,1746333043037,-484.85,0.00019999,2]
[359778958,1746333043047,-11039.40926765,0.00019999,2]
[359778959,1746333043058,-186.88200739,0.00019999,2]
[359778960,1746333043068,-163.51841799,0.00019999,2]
[359778961,1746333043078,-218.05109706,0.00019999,2]
[359778962,1746333043087,-896.0,0.00019999,2]
[359778963,1746333043097,-620.57635347,0.0002,2]
[359778964,1746333043107,-3093571.34712661,0.0002,2]
[359778965,1746333043117,-2000.0,0.0002,4]
[359778966,1746333043129,-2000.0,0.0002,4]
[359778967,1746333043139,-2000.0,0.0002,4]
[359778968,1746333043148,-2000.0,0.0002,4]
[359778969,1746333043158,-2000.0,0.0002,4]
[359778970,1746333043169,-2000.0,0.0002,4]
[359778971,1746333043179,-452005.21343402,0.0002,2]
[359778972,1746333043190,-705976.98956153,0.0002,2]
[359778973,1746333043206,-609.5,0.0002,2]
[359778974,1746333043219,-35276.52674199,0.0002,2]
[359778975,1746333043231,-11134.77254775,0.0002,2]
[359778976,1746333043242,-1924.31150499,0.0002,2]
[359778977,1746333043254,-9243.95423337,0.0002,2]
[359778978,1746333043265,-502.95879699,0.0002,2]
[359778979,1746333043277,-2168.66314886,0.0002,2]
[359778981,1746333043376,-12478.69897615,0.0002,2]
[359778984,1746333043418,-2239.10260521,0.0002,2]
[359778986,1746333043430,-432.06190101,0.0002,2]
[359778988,1746333043441,-74877.95679768,0.0002,2]
[359779011,1746333046168,-367.20348301,0.00019982,2]
[359779012,1746333046180,-457.97,0.00019983,2]
[359779013,1746333046190,-1386.98962111,0.00019983,2]
[359779014,1746333046277,-1859.1,0.00019983,2]
[359779015,1746333046289,-673.80037889,0.00019983,2]
[359779016,1746333046299,-1199.02993561,0.0002,2]
[359779017,1746333046310,-763.90658138,0.0002,2]
[359779024,1746333093719,423.06,0.00017248,2]
[359779025,1746333093935,416.42681692,0.00019512,2]
[359779026,1746333093959,6.63318308,0.00019512,2]
[359779031,1746333239550,1000.0,0.0003,30]
[359779032,1746333242783,1000.0,0.0003,30]
[359779033,1746333243466,1000.0,0.0003,30]
[359779034,1746333292392,152.86,0.000298,31]
[359779035,1746333292430,152.86,0.000298,31]
[359779036,1746333292467,152.86,0.000298,31]
[359779037,1746333292505,152.86,0.000298,31]
[359779038,1746333292544,152.86,0.000298,31]
[359779039,1746333292587,152.86,0.000298,31]
[359779040,1746333292627,152.86,0.000298,31]
[359779041,1746333339288,1000.0,0.00019049,2]
[359779042,1746333353561,200.0,0.00019042,2]
[359779046,1746333493024,153.23,0.0001903,2]
[359779047,1746333503686,158.44,0.00019025,2]
[359779048,1746333538841,258.05,0.00019018,2]
[359779049,1746333640764,1430.28,0.00018972,2]
[359779050,1746333640789,3528.83529373,0.00018972,2]
[359779051,1746333640811,4735.46847681,0.00018972,2]
[359779052,1746333640833,895.16,0.00018972,2]
[359779053,1746333640855,544.61622946,0.00018972,2]
[359779073,1746334098146,156.71,0.00019432,2]
[359779085,1746334144604,211.81,0.00018857,2]
[359779086,1746334144820,211.81,0.00028286,120]
[359779097,1746334195214,-220.28433428,0.00019676,2]
[359779098,1746334195236,-242.4349999,0.000197,2]
[359779099,1746334195486,-200.0,0.00019712,2]
[359779100,1746334195509,-200.0,0.00019752,2]
[359779101,1746334195532,-3137.28066582,0.00019752,2]
[359779102,1746334196186,-4000.0,0.00019752,2]
[359779103,1746334197189,-4000.0,0.00019752,2]
[359779104,1746334198216,-4000.0,0.00019752,2]
[359779105,1746334199144,-4000.0,0.00019752,2]
[359779106,1746334199593,-4000.0,0.00019752,2]
[359779107,1746334200404,-4000.0,0.00019752,2]
[359779108,1746334201566,-473.6668589,0.000197,2]
[359779109,1746334201588,-300.0,0.00019751,2]
[359779110,1746334201610,-3226.3331411,0.00019752,2]
[359779111,1746334201983,-4000.0,0.00019752,2]
[359779112,1746334203154,-4000.0,0.00019752,2]
[359779113,1746334203899,-4000.0,0.00019752,2]
[359779115,1746334205447,-4000.0,0.00019752,2]
[359779118,1746334205858,-4000.0,0.00019752,2]
[359779119,1746334206950,-4000.0,0.00019752,2]
[359779120,1746334208037,-4000.0,0.00019752,2]
[359779121,1746334208380,-4000.0,0.00019752,2]
[359779122,1746334209626,-4000.0,0.00019752,2]
[359779124,1746334232151,-261.46076796,0.00019751,2]
[359779125,1746334232207,-938.53923204,0.00019751,2]
[359779126,1746334232216,-157.26747582,0.00019752,2]
[359779127,1746334232228,-417.12196834,0.00019752,2]
[359779128,1746334232240,-8084.99220549,0.00019752,2]
[359779129,1746334232250,-300.0,0.00019763,2]
[359779130,1746334232260,-200.0,0.00019764,2]
[359779131,1746334232270,-200.0,0.00019775,2]
[359779132,1746334232279,-210.11111646,0.00019776,2]
[359779133,1746334232289,-356.0428,0.00019782,2]
[359779134,1746334232298,-224.7035,0.00019782,2]
[359779135,1746334232308,-2500.0,0.00019782,2]
[359779136,1746334232317,-1000.0,0.00019782,2]
[359779137,1746334232327,-799.0,0.00019782,2]
[359779138,1746334232336,-1000.0,0.00019783,2]
[359779139,1746334232346,-500.0,0.00019783,2]
[359779140,1746334232355,-18240.8769,0.00019783,2]
[359779141,1746334232365,-457.02420066,0.00019787,2]
[359779142,1746334232374,-179.26896799,0.00019787,2]
[359779143,1746334232384,-159.40114631,0.00019787,2]
[359779144,1746334232394,-200.09817808,0.00019787,2]
[359779145,1746334232404,-414.9626161,0.00019799,2]
[359779146,1746334232413,-457.02420061,0.000198,2]
[359779147,1746334232423,-457.02420061,0.00019812,2]
[359779148,1746334232432,-457.02420061,0.00019825,2]
[359779149,1746334232442,-457.02420061,0.00019837,2]
[359779150,1746334232451,-457.02420061,0.0001985,2]
[359779151,1746334232460,-457.02420061,0.00019862,2]
[359779152,1746334232470,-207.4,0.0001987,2]
[359779153,1746334232479,-193.73484558,0.00019871,2]
[359779154,1746334232488,-151.0,0.00019871,2]
[359779155,1746334232497,-158.35381838,0.00019871,2]
[359779156,1746334232507,-312.06876415,0.00019873,2]
[359779157,1746334232516,-500.0,0.00019873,2]
[359779158,1746334232525,-500.0,0.00019873,2]
[359779159,1746334232534,-457.02420061,0.00019875,2]
[359779161,1746334232543,-452.6736523,0.00019882,2]
[359779163,1746334232552,-489.5162503,0.00019882,2]
[359779165,1746334232562,-450.0,0.00019882,2]
[359779167,1746334232571,-450.0,0.00019882,2]
[359779169,1746334232580,-469.88121006,0.00019882,2]
[359779171,1746334232590,-654.15,0.00019882,2]
[359779173,1746334232599,-450.0,0.00019882,2]
[359779175,1746334232608,-450.0,0.00019882,2]
[359779177,1746334232618,-450.0,0.00019882,2]
[359779179,1746334232627,-553.4,0.00019882,2]
[359779181,1746334232636,-450.0,0.00019882,2]
[359779183,1746334232645,-405.51397285,0.00019882,2]
[359779185,1746334232654,-450.0,0.00019882,2]
[359779187,1746334232663,-450.0,0.00019882,2]
[359779189,1746334232672,-450.0,0.00019882,2]
[359779191,1746334232681,-513.36294211,0.00019882,2]
[359779193,1746334232691,-450.0,0.00019882,2]
[359779195,1746334232699,-450.0,0.00019882,2]
[359779198,1746334232709,-455.69095936,0.00019882,2]
[359779200,1746334232718,-450.0,0.00019882,2]
[359779203,1746334232727,-441.06517554,0.00019882,2]
[359779209,1746334232748,-8.93482446,0.00019882,2]
[359779212,1746334232757,-325.89008284,0.00019882,2]
[359779215,1746334232766,-245.46368329,0.00019882,2]
[359779218,1746334232775,-450.0,0.00019882,2]
[359779221,1746334232784,-427.55567073,0.00019882,2]
[359779224,1746334232794,-450.0,0.00019882,2]
[359779227,1746334232803,-450.0,0.00019882,2]
[359779229,1746334232812,-450.0,0.00019882,2]
[359779231,1746334232821,-194.15573868,0.00019882,2]
[359779234,1746334232840,-255.84426132,0.00019882,2]
[359779236,1746334232849,-893.93,0.00019882,2]
[359779238,1746334232858,-69.3999835,0.00019882,2]
[359779240,1746334232875,-577.0900165,0.00019882,2]
[359779241,1746334232884,-372.11921554,0.00019882,2]
[359779244,1746334238485,-77.88078446,0.00019882,2]
[359779245,1746334238495,-450.0,0.00019882,2]
[359779246,1746334238504,-450.0,0.00019882,2]
[359779247,1746334238515,-450.0,0.00019882,2]
[359779248,1746334238524,-1631.3,0.00019882,2]
[359779249,1746334238533,-432.28836219,0.00019882,2]
[359779251,1746334238542,-622.31,0.00019882,2]
[359779253,1746334238552,-450.0,0.00019882,2]
[359779254,1746334238561,-3756.56,0.00019882,2]
[359779255,1746334238570,-450.0,0.00019882,2]
[359779256,1746334238579,-389.04584021,0.00019882,2]
[359779257,1746334238588,-450.0,0.00019882,2]
[359779258,1746334238597,-450.0,0.00019882,2]
[359779259,1746334238606,-2856.09,0.00019882,2]
[359779260,1746334238615,-77.2055022,0.00019882,2]
[359779264,1746334240286,-372.7944978,0.00019882,2]
[359779265,1746334240296,-450.0,0.00019882,2]
[359779266,1746334240306,-177.2055022,0.00019882,2]
[359779267,1746334240399,-283.87606987,0.00019882,2]
[359779268,1746334240408,-783.72,0.00019882,2]
[359779269,1746334240417,-450.0,0.00019882,2]
[359779270,1746334240426,-450.0,0.00019882,2]
[359779271,1746334240435,-450.0,0.00019882,2]
[359779272,1746334240444,-2674.51,0.00019882,2]
[359779273,1746334240453,-803.32,0.00019882,2]
[359779274,1746334240462,-450.0,0.00019882,2]
[359779275,1746334240472,-442.76347407,0.00019882,2]
[359779276,1746334240481,-62212.12,0.00019882,2]
[359779277,1746334240490,-210.86161016,0.00019882,2]
[359779278,1746334240499,-450.0,0.00019882,2]
[359779279,1746334240508,-450.0,0.00019882,2]
[359779280,1746334240517,-450.0,0.00019882,2]
[359779281,1746334240526,-1032.98,0.00019882,2]
[359779282,1746334240536,-450.0,0.00019882,2]
[359779283,1746334240546,-3175.88,0.00019882,2]
[359779284,1746334240555,-1160.55,0.00019882,2]
[359779285,1746334240564,-450.0,0.00019882,2]
[359779286,1746334240573,-450.0,0.00019882,2]
[359779287,1746334240582,-450.0,0.00019882,2]
[359779288,1746334240591,-716.32,0.00019882,2]
[359779289,1746334240601,-6011.21,0.00019882,2]
[359779290,1746334240610,-450.0,0.00019882,2]
[359779291,1746334240619,-450.0,0.00019882,2]
[359779292,1746334240628,-450.0,0.00019882,2]
[359779293,1746334240637,-450.0,0.00019882,2]
[359779294,1746334240646,-976.85,0.00019882,2]
[359779295,1746334240655,-1908.0,0.00019882,2]
[359779296,1746334240664,-450.0,0.00019882,2]
[359779297,1746334240673,-450.0,0.00019882,2]
[359779298,1746334240683,-450.0,0.00019882,2]
[359779299,1746334240692,-1021.96,0.00019882,2]
[359779300,1746334240701,-553.05,0.00019882,2]
[359779301,1746334240710,-8379.13,0.00019882,2]
[359779302,1746334240719,-450.0,0.00019882,2]
[359779303,1746334240729,-450.0,0.00019882,2]
[359779304,1746334240738,-450.0,0.00019882,2]
[359779305,1746334240747,-450.0,0.00019882,2]
[359779306,1746334240757,-450.0,0.00019882,2]
[359779307,1746334240766,-450.0,0.00019882,2]
[359779308,1746334240775,-392.2486445,0.00019882,2]
[359779309,1746334240784,-450.0,0.00019882,2]
[359779310,1746334240794,-450.0,0.00019882,2]
[359779311,1746334240803,-450.0,0.00019882,2]
[359779312,1746334240812,-450.0,0.00019882,2]
[359779313,1746334240821,-450.0,0.00019882,2]
[359779314,1746334240833,-450.0,0.00019882,2]
[359779315,1746334240843,-450.0,0.00019882,2]
[359779316,1746334240852,-4287.31,0.00019882,2]
[359779317,1746334240861,-450.0,0.00019882,2]
[359779318,1746334240871,-450.0,0.00019882,2]
[359779319,1746334240880,-450.0,0.00019882,2]
[359779320,1746334240891,-450.0,0.00019882,2]
[359779321,1746334240900,-954.3,0.00019882,2]
[359779322,1746334240912,-638.13,0.00019882,2]
[359779323,1746334240921,-450.0,0.00019882,2]
[359779324,1746334240930,-450.0,0.00019882,2]
[359779325,1746334240940,-344.17871297,0.00019882,2]
[359779326,1746334240950,-543.41155062,0.00019882,2]
[359779327,1746334240959,-3565.53,0.00019882,2]
[359779328,1746334240969,-450.0,0.00019882,2]
[359779329,1746334240978,-541.85,0.00019882,2]
[359779330,1746334240988,-450.0,0.00019882,2]